[Event "Titled Tuesday Blitz June 27 Early 2023"]
[White "Flis, Pawel"]
[Black "O`Gorman, Tom"]
[WhiteFideId "1112864"]
[BlackFideId "2508249"]
[WhiteElo "2129"]
[BlackElo "2566"]
[Result "0-1"]
[Round "5"]
[TimeControl "180+2"]
[Date "2023.06.27"]
[WhiteClock "0:00:16"]
[BlackClock "0:00:43"]
[Board "210"]

1. e4 {[%clk 0:03:00]}  c5 {[%clk 0:02:50]} 2. Nf3 {[%clk 0:02:59]}  d6 {[%clk 0:02:51]} 3. d4 {[%clk 0:03:00]}  cxd4 {[%clk 0:02:52]} 4. Nxd4 {[%clk 0:03:00]}  Nf6 {[%clk 0:02:53]} 5. Nc3 {[%clk 0:03:00]}  a6 {[%clk 0:02:53]} 6. Be3 {[%clk 0:03:00]}  e6 {[%clk 0:02:53]} 7. Be2 {[%clk 0:02:57]}  Be7 {[%clk 0:02:51]} 8. O-O {[%clk 0:02:57]}  O-O {[%clk 0:02:48]} 9. f4 {[%clk 0:02:56]}  Nc6 {[%clk 0:02:48]} 10. Kh1 {[%clk 0:02:54]}  Bd7 {[%clk 0:02:48]} 11. Qe1 {[%clk 0:02:52]}  b5 {[%clk 0:02:31]} 12. Bd3 {[%clk 0:02:51]}  b4 {[%clk 0:02:20]} 13. Nce2 {[%clk 0:02:37]}  Qc7 {[%clk 0:02:20]} 14. Qg3 {[%clk 0:02:20]}  Kh8 {[%clk 0:02:05]} 15. Nxc6 {[%clk 0:02:18]}  Bxc6 {[%clk 0:02:04]} 16. e5 {[%clk 0:02:18]}  Nd5 {[%clk 0:02:02]} 17. Bd2 {[%clk 0:02:11]}  f5 {[%clk 0:01:57]} 18. Nd4 {[%clk 0:01:58]}  Bd7 {[%clk 0:01:55]} 19. Rae1 {[%clk 0:01:56]}  dxe5 {[%clk 0:01:55]} 20. fxe5 {[%clk 0:01:46]}  Qa7 {[%clk 0:01:53]} 21. Nf3 {[%clk 0:01:32]}  Bb5 {[%clk 0:01:47]} 22. Ng5 {[%clk 0:01:25]}  Bxd3 {[%clk 0:01:46]} 23. cxd3 {[%clk 0:01:20]}  Qb6 {[%clk 0:01:44]} 24. Rc1 {[%clk 0:01:10]}  h6 {[%clk 0:01:42]} 25. Qh3 {[%clk 0:01:05]}  Kg8 {[%clk 0:01:31]} 26. Nf3 {[%clk 0:01:02]}  Rac8 {[%clk 0:01:28]} 27. Bxh6 {[%clk 0:00:55]}  Rxc1 {[%clk 0:00:56]} 28. Bxc1 {[%clk 0:00:50]}  f4 {[%clk 0:00:57]} 29. Qh5 {[%clk 0:00:45]}  Qb5 {[%clk 0:00:51]} 30. Qg6 {[%clk 0:00:39]}  Qd7 {[%clk 0:00:51]} 31. Nd4 {[%clk 0:00:33]}  Ne3 {[%clk 0:00:46]} 32. Bxe3 {[%clk 0:00:29]}  fxe3 {[%clk 0:00:46]} 33. Rxf8+ {[%clk 0:00:28]}  Bxf8 {[%clk 0:00:47]} 34. Kg1 {[%clk 0:00:21]}  Qxd4 {[%clk 0:00:46]} 35. Qxe6+ {[%clk 0:00:20]}  Kh7 {[%clk 0:00:45]} 36. Qh3+ {[%clk 0:00:20]}  Kg6 {[%clk 0:00:45]} 37. Qg4+ {[%clk 0:00:19]}  Qxg4 {[%clk 0:00:44]} 38. h3 {[%clk 0:00:16]}  Qd1+ {[%clk 0:00:43]} 0-1


[Site "https://www.chess.com"]

[Event "Titled Tuesday Blitz June 27 Early 2023"]
[White "Sharma, Dinesh K."]
[Black "deloewre"]
[WhiteFideId "5004110"]
[WhiteElo "2547"]
[BlackElo "2119"]
[Result "1-0"]
[Round "5"]
[TimeControl "180+2"]
[Date "2023.06.27"]
[WhiteClock "0:02:06"]
[BlackClock "0:00:00"]
[Board "211"]

1. e4 {[%clk 0:03:00]}  c5 {[%clk 0:02:58]} 2. Nf3 {[%clk 0:03:00]}  Nc6 {[%clk 0:02:58]} 3. d4 {[%clk 0:03:00]}  cxd4 {[%clk 0:02:57]} 4. Nxd4 {[%clk 0:03:01]}  e5 {[%clk 0:02:56]} 5. Nb5 {[%clk 0:03:01]}  d6 {[%clk 0:02:56]} 6. c4 {[%clk 0:03:01]}  Be6 {[%clk 0:02:54]} 7. N1c3 {[%clk 0:03:01]}  a6 {[%clk 0:02:52]} 8. Na3 {[%clk 0:03:01]}  g6 {[%clk 0:02:50]} 9. Be3 {[%clk 0:03:01]}  Bg7 {[%clk 0:02:48]} 10. Nc2 {[%clk 0:02:59]}  Nf6 {[%clk 0:02:45]} 11. Be2 {[%clk 0:02:59]}  O-O {[%clk 0:02:40]} 12. O-O {[%clk 0:02:59]}  Rc8 {[%clk 0:02:39]} 13. f3 {[%clk 0:02:55]}  Qe7 {[%clk 0:02:23]} 14. Qd2 {[%clk 0:02:54]}  Rfd8 {[%clk 0:02:15]} 15. Rfd1 {[%clk 0:02:52]}  Ne8 {[%clk 0:02:00]} 16. Nd5 {[%clk 0:02:42]}  Bxd5 {[%clk 0:01:56]} 17. cxd5 {[%clk 0:02:42]}  Nb8 {[%clk 0:01:53]} 18. Bb6 {[%clk 0:02:43]}  Rd7 {[%clk 0:01:49]} 19. Na3 {[%clk 0:02:40]}  Nc7 {[%clk 0:01:45]} 20. Rac1 {[%clk 0:02:39]}  Rf8 {[%clk 0:01:27]} 21. Rc2 {[%clk 0:02:35]}  Na8 {[%clk 0:01:22]} 22. Be3 {[%clk 0:02:31]}  Rdd8 {[%clk 0:01:19]} 23. Rdc1 {[%clk 0:02:30]}  Nd7 {[%clk 0:01:17]} 24. Nc4 {[%clk 0:02:29]}  Nc5 {[%clk 0:01:10]} 25. Nxd6 {[%clk 0:02:26]}  Qxd6 {[%clk 0:01:04]} 26. Bxc5 {[%clk 0:02:26]}  Qd7 {[%clk 0:01:03]} 27. Bxf8 {[%clk 0:02:25]}  Rxf8 {[%clk 0:01:01]} 28. Kh1 {[%clk 0:02:26]}  f5 {[%clk 0:00:58]} 29. Bd3 {[%clk 0:02:24]}  h5 {[%clk 0:00:52]} 30. exf5 {[%clk 0:02:20]}  gxf5 {[%clk 0:00:51]} 31. Qg5 {[%clk 0:02:21]}  Qf7 {[%clk 0:00:38]} 32. d6 {[%clk 0:02:16]}  Kh7 {[%clk 0:00:34]} 33. Rc7 {[%clk 0:02:11]}  Qg6 {[%clk 0:00:32]} 34. Qxg6+ {[%clk 0:02:09]}  Kxg6 {[%clk 0:00:32]} 35. Rxb7 {[%clk 0:02:09]}  e4 {[%clk 0:00:28]} 36. fxe4 {[%clk 0:02:09]}  fxe4 {[%clk 0:00:27]} 37. Bxe4+ {[%clk 0:02:09]}  Kh6 {[%clk 0:00:27]} 38. d7 {[%clk 0:02:08]}  Bxb2 {[%clk 0:00:00]} 39. Rxb2 {[%clk 0:02:06]} 1-0


[Site "https://www.chess.com"]

[Event "Titled Tuesday Blitz June 27 Early 2023"]
[White "Floresvillar Gonzalez, Luis Migu"]
[Black "Gundam, Rohit"]
[WhiteFideId "5100542"]
[BlackFideId "75002809"]
[WhiteElo "2118"]
[BlackElo "2472"]
[Result "0-1"]
[Round "5"]
[TimeControl "180+2"]
[Date "2023.06.27"]
[WhiteClock "0:00:34"]
[BlackClock "0:00:44"]
[Board "212"]

1. e4 {[%clk 0:03:00]}  e5 {[%clk 0:02:58]} 2. Nf3 {[%clk 0:03:00]}  Nc6 {[%clk 0:02:57]} 3. Bb5 {[%clk 0:02:59]}  Bc5 {[%clk 0:02:56]} 4. c3 {[%clk 0:02:58]}  Nf6 {[%clk 0:02:55]} 5. d3 {[%clk 0:02:55]}  d6 {[%clk 0:02:55]} 6. O-O {[%clk 0:02:51]}  O-O {[%clk 0:02:54]} 7. Bg5 {[%clk 0:02:50]}  h6 {[%clk 0:02:53]} 8. Be3 {[%clk 0:02:48]}  Bb6 {[%clk 0:02:52]} 9. Qe2 {[%clk 0:02:45]}  Bg4 {[%clk 0:02:52]} 10. Nbd2 {[%clk 0:02:43]}  Ne7 {[%clk 0:02:50]} 11. h3 {[%clk 0:02:41]}  Bh5 {[%clk 0:02:49]} 12. g4 {[%clk 0:02:40]}  Nxg4 {[%clk 0:02:42]} 13. hxg4 {[%clk 0:02:39]}  Bxg4 {[%clk 0:02:43]} 14. Bxb6 {[%clk 0:02:39]}  axb6 {[%clk 0:02:42]} 15. Qe3 {[%clk 0:02:37]}  Ng6 {[%clk 0:02:36]} 16. Nh2 {[%clk 0:02:34]}  Be6 {[%clk 0:02:24]} 17. Bc4 {[%clk 0:02:33]}  Nf4 {[%clk 0:02:24]} 18. Kh1 {[%clk 0:02:20]}  d5 {[%clk 0:02:08]} 19. exd5 {[%clk 0:02:17]}  Bxd5+ {[%clk 0:02:09]} 20. Bxd5 {[%clk 0:02:15]}  Qxd5+ {[%clk 0:02:10]} 21. Qe4 {[%clk 0:02:11]}  Qxd3 {[%clk 0:02:10]} 22. Qxd3 {[%clk 0:02:10]}  Nxd3 {[%clk 0:02:10]} 23. b3 {[%clk 0:01:52]}  f5 {[%clk 0:02:08]} 24. f3 {[%clk 0:01:50]}  Rad8 {[%clk 0:01:55]} 25. a4 {[%clk 0:01:39]}  Nc5 {[%clk 0:01:50]} 26. Ra2 {[%clk 0:01:33]}  Rd3 {[%clk 0:01:47]} 27. Nc4 {[%clk 0:01:29]}  Rxc3 {[%clk 0:01:43]} 28. Nxe5 {[%clk 0:01:29]}  Rxb3 {[%clk 0:01:41]} 29. f4 {[%clk 0:01:26]}  Ra8 {[%clk 0:01:38]} 30. Nhf3 {[%clk 0:01:22]}  Rb4 {[%clk 0:01:35]} 31. Nh4 {[%clk 0:01:20]}  Raxa4 {[%clk 0:01:30]} 32. Rxa4 {[%clk 0:01:19]}  Rxa4 {[%clk 0:01:29]} 33. Nxf5 {[%clk 0:01:20]}  Ne6 {[%clk 0:01:25]} 34. Rg1 {[%clk 0:01:10]}  Kh7 {[%clk 0:01:10]} 35. Nd3 {[%clk 0:01:03]}  g6 {[%clk 0:00:57]} 36. Ne7 {[%clk 0:01:00]}  Nxf4 {[%clk 0:00:56]} 37. Nxf4 {[%clk 0:00:59]}  Rxf4 {[%clk 0:00:57]} 38. Nxg6 {[%clk 0:00:56]}  Rf5 {[%clk 0:00:55]} 39. Nf8+ {[%clk 0:00:54]}  Rxf8 {[%clk 0:00:54]} 40. Re1 {[%clk 0:00:49]}  Rf7 {[%clk 0:00:54]} 41. Re6 {[%clk 0:00:46]}  b5 {[%clk 0:00:53]} 42. Re5 {[%clk 0:00:45]}  c6 {[%clk 0:00:51]} 43. Kh2 {[%clk 0:00:46]}  Kg6 {[%clk 0:00:51]} 44. Kh3 {[%clk 0:00:45]}  Rc7 {[%clk 0:00:48]} 45. Re6+ {[%clk 0:00:44]}  Kf5 {[%clk 0:00:48]} 46. Rxh6 {[%clk 0:00:44]}  b4 {[%clk 0:00:48]} 47. Rh4 {[%clk 0:00:43]}  c5 {[%clk 0:00:48]} 48. Rc4 {[%clk 0:00:42]}  b5 {[%clk 0:00:48]} 49. Rc1 {[%clk 0:00:42]}  b3 {[%clk 0:00:48]} 50. Rf1+ {[%clk 0:00:42]}  Ke4 {[%clk 0:00:48]} 51. Rf6 {[%clk 0:00:39]}  b2 {[%clk 0:00:47]} 52. Rf7 {[%clk 0:00:34]}  Rxf7 {[%clk 0:00:44]} 0-1


[Site "https://www.chess.com"]

[Event "Titled Tuesday Blitz June 27 Early 2023"]
[White "Politov, Pavel Y."]
[Black "Rodrigues Mota, Romulo Cardoso S"]
[WhiteFideId "24110515"]
[BlackFideId "2187442"]
[WhiteElo "2106"]
[BlackElo "2278"]
[Result "0-1"]
[Round "5"]
[TimeControl "180+2"]
[Date "2023.06.27"]
[WhiteClock "0:00:34"]
[BlackClock "0:00:43"]
[Board "215"]

1. e4 {[%clk 0:03:00]}  c5 {[%clk 0:01:44]} 2. Nf3 {[%clk 0:02:58]}  g6 {[%clk 0:01:44]} 3. d4 {[%clk 0:02:57]}  cxd4 {[%clk 0:01:45]} 4. Nxd4 {[%clk 0:02:58]}  Nc6 {[%clk 0:01:45]} 5. c4 {[%clk 0:02:57]}  Bg7 {[%clk 0:01:45]} 6. Be3 {[%clk 0:02:56]}  Nf6 {[%clk 0:01:46]} 7. Nc3 {[%clk 0:02:56]}  O-O {[%clk 0:01:43]} 8. Be2 {[%clk 0:02:48]}  d6 {[%clk 0:01:42]} 9. O-O {[%clk 0:02:47]}  Nxd4 {[%clk 0:01:39]} 10. Bxd4 {[%clk 0:02:45]}  Be6 {[%clk 0:01:39]} 11. b3 {[%clk 0:02:43]}  Nd7 {[%clk 0:01:37]} 12. Rc1 {[%clk 0:02:35]}  f5 {[%clk 0:01:30]} 13. exf5 {[%clk 0:02:16]}  Bxf5 {[%clk 0:01:30]} 14. Be3 {[%clk 0:02:11]}  Qa5 {[%clk 0:01:17]} 15. Qd2 {[%clk 0:02:00]}  Nc5 {[%clk 0:01:02]} 16. Nd5 {[%clk 0:01:33]}  Qxd2 {[%clk 0:01:00]} 17. Bxd2 {[%clk 0:01:34]}  Rae8 {[%clk 0:00:58]} 18. Be3 {[%clk 0:01:35]}  e6 {[%clk 0:00:50]} 19. Bd2 {[%clk 0:01:36]}  exd5 {[%clk 0:00:49]} 20. Be3 {[%clk 0:01:37]}  d4 {[%clk 0:00:48]} 21. Bd2 {[%clk 0:01:38]}  Rxe2 {[%clk 0:00:49]} 22. Be3 {[%clk 0:01:39]}  dxe3 {[%clk 0:00:49]} 23. fxe3 {[%clk 0:01:33]}  Be4 {[%clk 0:00:48]} 24. Rxf8+ {[%clk 0:01:30]}  Bxf8 {[%clk 0:00:47]} 25. g3 {[%clk 0:01:11]}  Rg2+ {[%clk 0:00:47]} 26. Kf1 {[%clk 0:01:06]}  Rxh2 {[%clk 0:00:47]} 27. Ke1 {[%clk 0:01:01]}  Nd3+ {[%clk 0:00:47]} 28. Kf1 {[%clk 0:00:58]}  Nxc1 {[%clk 0:00:45]} 29. Kg1 {[%clk 0:00:56]}  Re2 {[%clk 0:00:44]} 30. Kf1 {[%clk 0:00:54]}  Bf3 {[%clk 0:00:43]} 31. c5 {[%clk 0:00:43]}  Nd3 {[%clk 0:00:43]} 32. cxd6 {[%clk 0:00:40]}  Bxd6 {[%clk 0:00:42]} 33. g4 {[%clk 0:00:37]}  Bg3 {[%clk 0:00:42]} 34. g5 {[%clk 0:00:34]}  Re1# {[%clk 0:00:43]} 0-1


[Site "https://www.chess.com"]

[Event "Titled Tuesday Blitz June 27 Early 2023"]
[White "Zampronha, Wladimir Camilo"]
[Black "Torres Dominguez, David"]
[WhiteFideId "2103087"]
[BlackFideId "2220857"]
[WhiteElo "2238"]
[BlackElo "2104"]
[Result "1-0"]
[Round "5"]
[TimeControl "180+2"]
[Date "2023.06.27"]
[WhiteClock "0:00:58"]
[BlackClock "0:00:00"]
[Board "216"]

1. e4 {[%clk 0:02:59]}  e5 {[%clk 0:03:00]} 2. Nf3 {[%clk 0:02:56]}  Nc6 {[%clk 0:03:00]} 3. d4 {[%clk 0:02:57]}  exd4 {[%clk 0:03:00]} 4. Nxd4 {[%clk 0:02:58]}  Nf6 {[%clk 0:03:01]} 5. Nxc6 {[%clk 0:02:57]}  bxc6 {[%clk 0:03:02]} 6. e5 {[%clk 0:02:57]}  Qe7 {[%clk 0:03:02]} 7. Qe2 {[%clk 0:02:57]}  Nd5 {[%clk 0:03:02]} 8. c4 {[%clk 0:02:58]}  Ba6 {[%clk 0:03:03]} 9. b3 {[%clk 0:02:58]}  g6 {[%clk 0:03:02]} 10. g3 {[%clk 0:02:58]}  Bg7 {[%clk 0:03:00]} 11. Bb2 {[%clk 0:02:59]}  f6 {[%clk 0:02:50]} 12. exf6 {[%clk 0:02:40]}  Qxe2+ {[%clk 0:02:48]} 13. Bxe2 {[%clk 0:02:39]}  Nxf6 {[%clk 0:02:47]} 14. O-O {[%clk 0:02:34]}  O-O {[%clk 0:02:41]} 15. Nc3 {[%clk 0:02:31]}  d5 {[%clk 0:02:36]} 16. cxd5 {[%clk 0:02:27]}  Bxe2 {[%clk 0:02:37]} 17. Nxe2 {[%clk 0:02:27]}  cxd5 {[%clk 0:02:37]} 18. Rac1 {[%clk 0:02:25]}  Rac8 {[%clk 0:02:31]} 19. Rc6 {[%clk 0:02:04]}  Rfe8 {[%clk 0:02:21]} 20. Nf4 {[%clk 0:01:58]}  g5 {[%clk 0:02:06]} 21. Ne6 {[%clk 0:01:44]}  Nh5 {[%clk 0:01:52]} 22. Bxg7 {[%clk 0:01:28]}  Nxg7 {[%clk 0:01:50]} 23. Nxc7 {[%clk 0:01:23]}  Re2 {[%clk 0:01:41]} 24. a4 {[%clk 0:01:07]}  d4 {[%clk 0:01:35]} 25. Rc4 {[%clk 0:01:02]}  d3 {[%clk 0:01:31]} 26. Rd1 {[%clk 0:01:01]}  d2 {[%clk 0:01:30]} 27. Kf1 {[%clk 0:01:01]}  Re7 {[%clk 0:01:23]} 28. Nd5 {[%clk 0:00:59]}  Rxc4 {[%clk 0:01:21]} 29. Nxe7+ {[%clk 0:00:59]}  Kf7 {[%clk 0:01:21]} 30. bxc4 {[%clk 0:01:00]}  Kxe7 {[%clk 0:01:21]} 31. Rxd2 {[%clk 0:01:01]}  Nf5 {[%clk 0:01:20]} 32. Rb2 {[%clk 0:01:01]}  Nd6 {[%clk 0:01:19]} 33. c5 {[%clk 0:01:00]}  Ne4 {[%clk 0:00:00]} 34. Rb7+ {[%clk 0:00:58]} 1-0


[Site "https://www.chess.com"]

[Event "Titled Tuesday Blitz June 27 Early 2023"]
[White "Tuleyeva-Aketayeva, Dana"]
[Black "Maluco_do_Natal_00"]
[WhiteFideId "13701932"]
[WhiteElo "2225"]
[BlackElo "2049"]
[Result "0-1"]
[Round "5"]
[TimeControl "180+2"]
[Date "2023.06.27"]
[WhiteClock "0:00:11"]
[BlackClock "0:00:11"]
[Board "218"]

1. d4 {[%clk 0:03:00]}  d5 {[%clk 0:02:59]} 2. Nf3 {[%clk 0:03:00]}  Nf6 {[%clk 0:02:59]} 3. g3 {[%clk 0:03:00]}  e6 {[%clk 0:02:44]} 4. Bg2 {[%clk 0:03:00]}  c5 {[%clk 0:02:43]} 5. O-O {[%clk 0:03:00]}  Nc6 {[%clk 0:02:42]} 6. c4 {[%clk 0:03:00]}  dxc4 {[%clk 0:02:33]} 7. dxc5 {[%clk 0:02:59]}  Qxd1 {[%clk 0:02:27]} 8. Rxd1 {[%clk 0:03:00]}  Bxc5 {[%clk 0:02:27]} 9. Nbd2 {[%clk 0:03:00]}  c3 {[%clk 0:02:19]} 10. bxc3 {[%clk 0:03:01]}  O-O {[%clk 0:02:12]} 11. Nb3 {[%clk 0:03:00]}  Bb6 {[%clk 0:01:59]} 12. Nfd4 {[%clk 0:02:51]}  Nd5 {[%clk 0:01:46]} 13. Nxc6 {[%clk 0:02:49]}  bxc6 {[%clk 0:01:44]} 14. Bb2 {[%clk 0:02:42]}  Ba6 {[%clk 0:01:35]} 15. e3 {[%clk 0:02:18]}  Rac8 {[%clk 0:01:28]} 16. Ba3 {[%clk 0:02:16]}  Rfe8 {[%clk 0:01:22]} 17. Rac1 {[%clk 0:02:15]}  Bc4 {[%clk 0:01:15]} 18. Rd2 {[%clk 0:02:06]}  h5 {[%clk 0:00:58]} 19. Bf3 {[%clk 0:01:51]}  g6 {[%clk 0:00:57]} 20. Bb2 {[%clk 0:01:30]}  a5 {[%clk 0:00:54]} 21. a4 {[%clk 0:01:24]}  Bxb3 {[%clk 0:00:52]} 22. Ba3 {[%clk 0:01:18]}  Bc4 {[%clk 0:00:46]} 23. Rb1 {[%clk 0:01:13]}  Bd8 {[%clk 0:00:41]} 24. Rd4 {[%clk 0:01:08]}  Ba6 {[%clk 0:00:35]} 25. c4 {[%clk 0:01:05]}  Nc3 {[%clk 0:00:31]} 26. Rc1 {[%clk 0:00:58]}  Na2 {[%clk 0:00:27]} 27. Rcd1 {[%clk 0:00:53]}  Nb4 {[%clk 0:00:25]} 28. c5 {[%clk 0:00:46]}  Bf6 {[%clk 0:00:22]} 29. Rd7 {[%clk 0:00:29]}  Red8 {[%clk 0:00:17]} 30. Bxb4 {[%clk 0:00:11]}  Rxd7 {[%clk 0:00:14]} 31. Rxd7 {[%clk 0:00:10]}  axb4 {[%clk 0:00:11]} 32. Ra7 {[%clk 0:00:10]}  Bc4 {[%clk 0:00:09]} 33. Rb7 {[%clk 0:00:05]}  b3 {[%clk 0:00:08]} 34. a5 {[%clk 0:00:04]}  b2 {[%clk 0:00:08]} 35. Be4 {[%clk 0:00:02]}  Bc3 {[%clk 0:00:06]} 36. a6 {[%clk 0:00:01]}  Bxa6 {[%clk 0:00:06]} 37. Rb3 {[%clk 0:00:01]}  Bf6 {[%clk 0:00:04]} 38. Kg2 {[%clk 0:00:02]}  Bc4 {[%clk 0:00:03]} 39. Rb6 {[%clk 0:00:02]}  Bd5 {[%clk 0:00:03]} 40. Kf3 {[%clk 0:00:02]}  Bxe4+ {[%clk 0:00:03]} 41. Kxe4 {[%clk 0:00:03]}  Rd8 {[%clk 0:00:02]} 42. Rb3 {[%clk 0:00:02]}  Rd1 {[%clk 0:00:02]} 43. Rb8+ {[%clk 0:00:02]}  Kg7 {[%clk 0:00:02]} 44. Rxb2 {[%clk 0:00:02]}  Bxb2 {[%clk 0:00:02]} 45. Kf3 {[%clk 0:00:02]}  Rb1 {[%clk 0:00:03]} 46. Ke2 {[%clk 0:00:02]}  Ra1 {[%clk 0:00:04]} 47. Kf3 {[%clk 0:00:03]}  Ba3 {[%clk 0:00:04]} 48. Kg2 {[%clk 0:00:04]}  Bxc5 {[%clk 0:00:05]} 49. Kf3 {[%clk 0:00:05]}  Ra2 {[%clk 0:00:06]} 50. Kg2 {[%clk 0:00:05]}  Bxe3 {[%clk 0:00:06]} 51. h4 {[%clk 0:00:06]}  Bxf2 {[%clk 0:00:07]} 52. Kh3 {[%clk 0:00:07]}  Bxg3 {[%clk 0:00:07]} 53. Kxg3 {[%clk 0:00:07]}  Ra4 {[%clk 0:00:07]} 54. Kh3 {[%clk 0:00:08]}  Rg4 {[%clk 0:00:08]} 55. Kh2 {[%clk 0:00:08]}  c5 {[%clk 0:00:09]} 56. Kh3 {[%clk 0:00:08]}  c4 {[%clk 0:00:10]} 57. Kh2 {[%clk 0:00:09]}  c3 {[%clk 0:00:11]} 58. Kh3 {[%clk 0:00:09]}  c2 {[%clk 0:00:12]} 59. Kh2 {[%clk 0:00:10]}  c1=Q {[%clk 0:00:12]} 60. Kh3 {[%clk 0:00:11]}  Qh1# {[%clk 0:00:11]} 0-1


[Site "https://www.chess.com"]

[Event "Titled Tuesday Blitz June 27 Early 2023"]
[White "Larina, Maria"]
[Black "Semenova, Alina"]
[WhiteFideId "24113182"]
[BlackFideId "24113875"]
[WhiteElo "2201"]
[BlackElo "2044"]
[Result "0-1"]
[Round "5"]
[TimeControl "180+2"]
[Date "2023.06.27"]
[WhiteClock "0:00:17"]
[BlackClock "0:00:51"]
[Board "219"]

1. e4 {[%clk 0:03:00]}  e6 {[%clk 0:02:58]} 2. d4 {[%clk 0:03:00]}  d5 {[%clk 0:02:58]} 3. Nc3 {[%clk 0:02:56]}  Bb4 {[%clk 0:02:58]} 4. exd5 {[%clk 0:02:56]}  exd5 {[%clk 0:02:58]} 5. Bd3 {[%clk 0:02:54]}  c6 {[%clk 0:02:58]} 6. Ne2 {[%clk 0:02:54]}  Nf6 {[%clk 0:02:58]} 7. O-O {[%clk 0:02:51]}  O-O {[%clk 0:02:59]} 8. Bg5 {[%clk 0:02:21]}  h6 {[%clk 0:02:56]} 9. Bh4 {[%clk 0:02:17]}  Re8 {[%clk 0:02:54]} 10. Qd2 {[%clk 0:02:05]}  Nbd7 {[%clk 0:02:50]} 11. Rae1 {[%clk 0:02:05]}  Be7 {[%clk 0:02:44]} 12. f3 {[%clk 0:01:50]}  Ne4 {[%clk 0:02:29]} 13. fxe4 {[%clk 0:01:30]}  Bxh4 {[%clk 0:02:29]} 14. g3 {[%clk 0:01:29]}  Bg5 {[%clk 0:02:29]} 15. Nf4 {[%clk 0:01:27]}  dxe4 {[%clk 0:02:27]} 16. Rxe4 {[%clk 0:01:22]}  Nf6 {[%clk 0:02:21]} 17. Rxe8+ {[%clk 0:01:19]}  Qxe8 {[%clk 0:02:21]} 18. h4 {[%clk 0:01:09]}  Bxf4 {[%clk 0:02:19]} 19. Qxf4 {[%clk 0:01:09]}  Bh3 {[%clk 0:02:17]} 20. Rd1 {[%clk 0:00:55]}  Qe7 {[%clk 0:02:14]} 21. Kh2 {[%clk 0:00:52]}  Bg4 {[%clk 0:02:14]} 22. Rf1 {[%clk 0:00:49]}  Re8 {[%clk 0:02:13]} 23. Rf2 {[%clk 0:00:37]}  h5 {[%clk 0:02:08]} 24. Kg2 {[%clk 0:00:25]}  Qe3 {[%clk 0:02:00]} 25. Qxe3 {[%clk 0:00:23]}  Rxe3 {[%clk 0:02:01]} 26. Bf5 {[%clk 0:00:16]}  Kf8 {[%clk 0:01:55]} 27. a3 {[%clk 0:00:09]}  Ke7 {[%clk 0:01:50]} 28. Na4 {[%clk 0:00:09]}  b6 {[%clk 0:01:39]} 29. Nc3 {[%clk 0:00:09]}  g6 {[%clk 0:01:29]} 30. Bd3 {[%clk 0:00:05]}  Nd5 {[%clk 0:01:07]} 31. Nxd5+ {[%clk 0:00:06]}  cxd5 {[%clk 0:01:08]} 32. b3 {[%clk 0:00:04]}  f5 {[%clk 0:00:57]} 33. Rd2 {[%clk 0:00:05]}  Kf6 {[%clk 0:00:57]} 34. c4 {[%clk 0:00:04]}  dxc4 {[%clk 0:00:57]} 35. bxc4 {[%clk 0:00:04]}  g5 {[%clk 0:00:57]} 36. hxg5+ {[%clk 0:00:04]}  Kxg5 {[%clk 0:00:58]} 37. Kf2 {[%clk 0:00:04]}  Rf3+ {[%clk 0:00:56]} 38. Kg2 {[%clk 0:00:05]}  h4 {[%clk 0:00:54]} 39. gxh4+ {[%clk 0:00:05]}  Kxh4 {[%clk 0:00:55]} 40. d5 {[%clk 0:00:05]}  Rg3+ {[%clk 0:00:55]} 41. Kf2 {[%clk 0:00:05]}  f4 {[%clk 0:00:54]} 42. d6 {[%clk 0:00:05]}  Rh3 {[%clk 0:00:51]} 43. Bf1 {[%clk 0:00:03]}  Rh2+ {[%clk 0:00:50]} 44. Bg2 {[%clk 0:00:04]}  f3 {[%clk 0:00:48]} 45. Kg1 {[%clk 0:00:04]}  Rxg2+ {[%clk 0:00:47]} 46. Rxg2 {[%clk 0:00:04]}  fxg2 {[%clk 0:00:47]} 47. Kxg2 {[%clk 0:00:05]}  Kg5 {[%clk 0:00:46]} 48. Kg3 {[%clk 0:00:06]}  Bd7 {[%clk 0:00:46]} 49. Kf3 {[%clk 0:00:06]}  Kf5 {[%clk 0:00:47]} 50. Ke3 {[%clk 0:00:07]}  Ke5 {[%clk 0:00:47]} 51. Kd3 {[%clk 0:00:07]}  Kxd6 {[%clk 0:00:47]} 52. Kc3 {[%clk 0:00:08]}  Kc5 {[%clk 0:00:48]} 53. Kb3 {[%clk 0:00:08]}  Be6 {[%clk 0:00:47]} 54. Kc3 {[%clk 0:00:09]}  Bxc4 {[%clk 0:00:48]} 55. a4 {[%clk 0:00:09]}  b5 {[%clk 0:00:49]} 56. a5 {[%clk 0:00:09]}  b4+ {[%clk 0:00:48]} 57. Kb2 {[%clk 0:00:09]}  Kb5 {[%clk 0:00:48]} 58. Kc2 {[%clk 0:00:09]}  Kxa5 {[%clk 0:00:48]} 59. Kb2 {[%clk 0:00:10]}  Ka4 {[%clk 0:00:49]} 60. Kc2 {[%clk 0:00:11]}  b3+ {[%clk 0:00:49]} 61. Kb2 {[%clk 0:00:12]}  Kb4 {[%clk 0:00:49]} 62. Ka1 {[%clk 0:00:13]}  a5 {[%clk 0:00:50]} 63. Kb2 {[%clk 0:00:14]}  a4 {[%clk 0:00:51]} 64. Ka1 {[%clk 0:00:15]}  a3 {[%clk 0:00:51]} 65. Kb1 {[%clk 0:00:15]}  b2 {[%clk 0:00:51]} 66. Kc2 {[%clk 0:00:15]}  Ba2 {[%clk 0:00:51]} 67. Kd2 {[%clk 0:00:16]}  b1=Q {[%clk 0:00:51]} 68. Ke3 {[%clk 0:00:17]}  Bd5 {[%clk 0:00:51]} 69. Kd4 {[%clk 0:00:17]}  Qe4# {[%clk 0:00:51]} 0-1


[Site "https://www.chess.com"]

[Event "Titled Tuesday Blitz June 27 Early 2023"]
[White "Nilssen, Ellen Fredericia"]
[Black "Castillo Pena, Patricia Evarista"]
[WhiteFideId "1441230"]
[BlackFideId "6412106"]
[WhiteElo "2159"]
[BlackElo "1907"]
[Result "1-0"]
[Round "5"]
[TimeControl "180+2"]
[Date "2023.06.27"]
[WhiteClock "0:02:02"]
[BlackClock "0:01:19"]
[Board "221"]

1. c4 {[%clk 0:03:00]}  c6 {[%clk 0:02:55]} 2. g3 {[%clk 0:02:59]}  d5 {[%clk 0:02:55]} 3. Bg2 {[%clk 0:02:59]}  Nf6 {[%clk 0:02:55]} 4. b3 {[%clk 0:02:57]}  e6 {[%clk 0:02:55]} 5. Bb2 {[%clk 0:02:58]}  Nbd7 {[%clk 0:02:55]} 6. Nf3 {[%clk 0:02:57]}  Bd6 {[%clk 0:02:54]} 7. d4 {[%clk 0:02:54]}  O-O {[%clk 0:02:53]} 8. O-O {[%clk 0:02:54]}  Qe7 {[%clk 0:02:50]} 9. Re1 {[%clk 0:02:52]}  e5 {[%clk 0:02:39]} 10. dxe5 {[%clk 0:02:43]}  Nxe5 {[%clk 0:02:38]} 11. cxd5 {[%clk 0:02:43]}  cxd5 {[%clk 0:02:38]} 12. Nc3 {[%clk 0:02:39]}  Nxf3+ {[%clk 0:02:34]} 13. Bxf3 {[%clk 0:02:38]}  Bb4 {[%clk 0:02:31]} 14. a3 {[%clk 0:02:22]}  Bxc3 {[%clk 0:02:19]} 15. Bxc3 {[%clk 0:02:23]}  Ne4 {[%clk 0:02:20]} 16. Bb4 {[%clk 0:02:23]}  Nc5 {[%clk 0:02:06]} 17. Qxd5 {[%clk 0:02:19]}  b6 {[%clk 0:01:56]} 18. Bxc5 {[%clk 0:02:04]}  Qxc5 {[%clk 0:01:25]} 19. Qxc5 {[%clk 0:02:04]}  bxc5 {[%clk 0:01:25]} 20. Bxa8 {[%clk 0:02:04]}  Ba6 {[%clk 0:01:19]} 21. Bf3 {[%clk 0:02:02]} 1-0


[Site "https://www.chess.com"]